bitfinex-derivatives/quotes_ETHF0:USTF0_20250330
["timestamp","ask_amount","ask_price","bid_price","bid_amount"]
[1743353500803,1.11342,1796.8,1796.6,3.7638]
[1743353501207,1.11342,1796.8,1796.7,3.7638]
[1743353501509,1.11352,1796.6,1796.5,5.9739]
[1743353501715,1.1216938,1796.9,1796.6,4.8856138]
[1743353502020,0.0083338,1796.9,1796.8,4.3212]
[1743353502207,5.97,1797.2,1796.7,10.98012432]
[1743353502208,9.1778,1797.2,1796.7,10.98012432]
[1743353502517,3.2078,1797.0,1796.7,3.7638]
[1743353502716,1.1134,1796.8,1796.6,0.0083338]
[1743353503015,1.1134,1796.8,1796.7,3.7638]
[1743353505209,11.6778,1796.8,1795.2,3.2078]
[1743353505414,3.2078,1795.7,1794.9,4.32238]
[1743353505712,5.56856,1796.3,1794.9,3.2078]
[1743353505713,3.2078,1795.4,1794.9,3.2078]
[1743353505912,1.11408,1795.7,1795.2,3.2078]
[1743353506214,1.11408,1795.7,1795.0,10.11482932]
[1743353506215,1.11433,1795.3,1795.0,3.2078]
[1743353506418,1.11427,1795.4,1795.3,0.0083338]
[1743353506715,7.3219138,1795.6,1795.3,0.0083338]
[1743353506902,1.1142,1795.5,1795.3,0.0083338]
[1743353507106,3.2078,1796.0,1795.5,1.11416]
[1743353507311,3.2078,1795.8,1795.4,5.8033]
[1743353507511,3.2078,1795.8,1795.5,2.7638]
[1743353507811,4.32184,1795.8,1795.6,3.0395]
[1743353508012,3.2078,1796.0,1795.6,10.12522]
[1743353508219,3.2078,1796.0,1795.7,5.8033]
[1743353508220,0.0083338,1795.9,1795.7,5.8033]
[1743353508616,0.0083338,1795.9,1795.8,2.7638]
[1743353509005,4.32147,1796.4,1795.8,8.4716]
[1743353509218,5.63758,1796.5,1796.2,4.32154]
[1743353509419,4.524,1796.5,1796.3,2.9262]
[1743353509716,8.44851,1796.5,1796.3,2.9262]
[1743353509915,4.32144,1796.4,1796.3,5.69]
[1743353510111,4.32144,1796.4,1795.9,3.2078]
[1743353510112,1.11371,1796.3,1796.2,0.0083338]
[1743353510312,1.11371,1796.3,1796.2,2.7721338]
[1743353510507,1.11371,1796.3,1796.2,0.0083338]
[1743353511114,1.11402,1795.8,1795.7,2.9262]
[1743353511320,1.11402,1795.8,1795.7,5.69]
[1743353512519,1.11392,1796.0,1795.7,5.69]
[1743353512817,1.11392,1796.0,1795.8,2.7638]
[1743353513020,1.11392,1796.0,1795.9,2.9524]
[1743353513220,5.66487,1796.1,1795.9,5.7162]
[1743353513416,3.2161338,1796.5,1796.0,2.7638]
[1743353513614,3.2161338,1796.5,1796.1,2.9524]
[1743353513809,1.11377,1796.2,1796.1,5.7162]
[1743353514016,4.32156,1796.3,1796.2,2.7638]
[1743353514220,4.32156,1796.3,1796.2,5.7162]
[1743353515423,3.2078,1796.3,1796.2,5.7162]
[1743353515620,4.3297638,1796.5,1796.2,6.82997]
[1743353515922,4.3297638,1796.5,1796.4,1.11364]
[1743353515923,0.0083338,1796.5,1796.4,1.11364]
[1743353516222,0.0083338,1796.5,1796.4,6.86664]
[1743353518317,0.0083338,1796.5,1796.4,10.07444]
[1743353519427,4.3212,1796.8,1796.5,1.11354]
[1743353519634,1.1134,1796.8,1796.6,2.8474]
[1743353519822,1.11338,1796.9,1796.6,6.72471]
[1743353520027,7.36842,1797.0,1796.7,6.72464]
[1743353520521,0.0083338,1797.0,1796.9,1.11333]
[1743353520824,1.1216038,1797.0,1796.9,3.117]
[1743353521021,4.3294038,1797.0,1796.9,5.8808]
[1743353521632,1.1134,1796.8,1796.7,0.0083338]
[1743353522018,1.11338,1796.9,1796.7,2.7721338]
[1743353522218,1.11338,1796.9,1796.8,2.7638]
[1743353522430,4.3294538,1797.0,1796.8,2.7638]
[1743353522729,3.2161338,1797.0,1796.9,2.7638]
[1743353522925,0.0083338,1797.0,1796.9,1.11333]
[1743353523129,0.0083338,1797.0,1796.9,6.99413]
[1743353523631,1.1216038,1797.0,1796.9,2.7638]
[1743353523934,3.9372038,1797.0,1796.9,2.7638]
[1743353524225,1.11333,1796.9,1796.8,2.9088]
[1743353524424,1.11333,1796.9,1796.8,5.6726]
[1743353524425,7.13673,1796.9,1796.8,5.6726]
[1743353524629,3.92893,1796.9,1796.8,5.6726]
[1743353524829,7.13673,1796.9,1796.8,5.6726]
[1743353525225,3.2078,1796.9,1796.8,6.786]
[1743353525420,3.2078,1796.9,1796.8,5.6726]
[1743353525824,4.32113,1796.9,1796.8,5.6726]
[1743353527130,1.11373,1796.3,1796.0,0.5568]
[1743353527336,2.78365,1796.7,1796.1,2.7638]
[1743353527337,3.2078,1796.6,1796.1,2.7638]
[1743353527832,1.11398,1795.9,1795.7,4.506]
[1743353528031,4.32174,1796.0,1795.8,2.7638]
[1743353528235,0.0083338,1796.0,1795.8,10.08936089]
[1743353528434,1.1222538,1796.0,1795.9,5.6544]
[1743353528837,0.0083338,1796.0,1795.9,6.76835]
[1743353529232,0.0083338,1796.0,1795.9,5.6544]
[1743353529636,1.1222238,1796.0,1795.9,5.6544]
[1743353530139,0.0083338,1796.0,1795.9,6.76835]
[1743353530339,1.1222238,1796.0,1795.9,5.6544]
[1743353530537,1.1222238,1796.0,1795.9,2.7638]
[1743353530731,4.3300238,1796.0,1795.9,2.7638]
[1743353531141,10.2281338,1796.0,1794.6,30.8078]
[1743353531436,10.2281338,1796.0,1794.8,10.16199]
[1743353531437,3.2078,1795.2,1794.8,10.16199]
[1743353531642,1.11451,1795.1,1794.9,5.6356]
[1743353532035,1.11451,1795.1,1795.0,2.7638]
[1743353532232,3.2078,1795.2,1795.0,2.7638]
[1743353532439,1.11433,1795.3,1795.1,5.6356]
[1743353532639,6.078,1795.4,1795.1,2.7638]
[1743353532839,1.11423,1795.5,1795.2,6.97016]
[1743353533134,2.9375,1795.7,1795.2,16.18661688]
[1743353533341,1.11423,1795.5,1795.3,2.7638]
[1743353533541,2.9375,1795.7,1795.4,3.092]
[1743353533742,1.11416,1795.6,1795.4,5.8558]
[1743353533937,3.2078,1795.8,1795.5,2.7638]
[1743353534138,0.0083338,1796.0,1795.7,1.11403]
[1743353534340,1.11395,1795.9,1795.8,3.092]
[1743353534738,4.3300738,1796.0,1795.8,5.8558]
[1743353535045,4.3300738,1796.0,1795.9,2.7638]
[1743353535245,4.3300738,1796.0,1795.9,5.8558]
[1743353536336,1.11402,1795.8,1795.7,0.0083338]
[1743353536540,4.32182,1795.8,1795.7,2.7721338]
[1743353536741,4.32182,1795.8,1795.7,0.0083338]
[1743353536935,9.66472,1795.8,1795.7,0.0083338]
[1743353537443,15.63472,1795.8,1795.7,0.0083338]
[1743353537747,1.11414,1795.6,1795.5,0.999]
[1743353537938,8.86494,1795.6,1795.5,0.999]
[1743353538341,11.36494,1795.6,1795.5,0.999]
[1743353538746,11.36494,1795.6,1794.7,2.9245]
[1743353538747,2.78584,1795.3,1794.7,2.9245]
[1743353538950,4.3224,1794.9,1794.7,5.6883]
[1743353539246,4.3224,1794.9,1794.3,0.5576]
[1743353539247,2.7866,1794.8,1794.1,3.2078]
[1743353539446,3.2078,1794.4,1794.2,5.8434]
[1743353539745,1.11501,1794.2,1794.1,3.2078]
[1743353540141,5.71101,1794.2,1794.1,3.2078]
[1743353540446,3.2078,1794.2,1794.1,2.7638]
[1743353540748,1.11526,1793.8,1793.7,3.2078]
[1743353540935,1.11526,1793.8,1792.6,3.2078]
[1743353540936,9.1778,1793.8,1792.6,3.2078]
[1743353541136,3.2078,1793.5,1793.0,3.2078]
[1743353541339,3.2078,1793.7,1793.1,3.0796]
[1743353541543,3.2078,1793.7,1793.4,1.11547]
[1743353541748,3.21615748,1793.9,1793.5,3.0796]
[1743353542047,3.21615748,1793.9,1793.5,11.49026154]
[1743353542243,3.21615748,1793.9,1793.6,5.9716]
[1743353542448,0.00835748,1793.9,1793.7,4.01742]
[1743353542747,0.00835748,1793.9,1793.7,8.8737]
[1743353543044,0.00835748,1793.9,1793.8,5.9716]
[1743353543549,4.07815748,1793.9,1793.8,5.9716]
[1743353543945,0.00835748,1793.9,1793.8,5.9716]
[1743353544147,3.2078,1794.2,1793.8,8.4716]
[1743353544343,1.11491,1794.4,1793.9,13.1967]
[1743353544640,6.1624,1794.7,1794.0,4.818]
[1743353544848,1.11498,1794.3,1794.1,2.9021]
[1743353545041,1.11491,1794.4,1794.1,8.8737]
[1743353545243,3.2078,1794.9,1794.3,3.2078]
[1743353545548,0.00835748,1794.8,1794.7,3.2078]
[1743353545850,0.00835748,1794.8,1794.6,3.1046]
[1743353546147,1.1147,1794.7,1794.6,9.0762]
[1743353546346,1.1149,1794.4,1794.1,54.69715748]
[1743353546542,1.1149,1794.4,1794.2,9.0762]
[1743353546742,6.3284,1794.7,1794.3,5.9716]
[1743353546743,3.1206,1794.7,1794.3,5.9716]
[1743353546945,1.11482,1794.5,1794.4,3.1046]
[1743353547137,1.11482,1794.5,1794.4,9.0762]
[1743353547337,1.11501,1794.2,1794.1,3.21615748]
[1743353547546,1.11501,1794.2,1794.1,0.00835748]
[1743353547753,1.11501,1794.2,1794.1,5.97995748]
[1743353548043,5.92301,1794.2,1794.1,0.00835748]
[1743353548248,8.42301,1794.2,1794.1,0.00835748]
[1743353548449,11.50141,1794.2,1794.1,0.00835748]
[1743353548643,2.78856,1793.6,1792.7,1.11592]
[1743353548846,1.11576,1793.0,1792.9,2.8577]
[1743353549046,3.0784,1793.5,1792.9,2.8577]
[1743353549238,1.11569,1793.1,1793.0,5.9716]
[1743353549443,1.11594,1792.7,1792.6,3.2078]
[1743353549839,1.11591,1792.8,1792.6,9.1794]
[1743353550044,1.11594,1792.7,1792.6,3.2078]
[1743353550246,7.9584,1793.0,1792.7,5.9716]
[1743353550546,1.11594,1792.7,1792.6,3.2078]
[1743353550747,1.11594,1792.7,1790.7,8.38213552]
[1743353550748,3.2078,1792.5,1790.7,8.38213552]
[1743353550953,2.79004,1792.6,1789.6,48.42820705]
[1743353550954,3.2078,1790.0,1789.6,48.42820705]
[1743353551246,4.32561,1789.7,1789.6,24.28920705]
[1743353551442,8.34417,1790.6,1789.6,30.28178288]
[1743353551643,0.00838153,1789.8,1789.7,1.1178]
[1743353551839,1.11729,1790.6,1789.7,10.34769852]
[1743353551840,3.2078,1790.6,1789.7,10.34769852]
[1743353552045,10.29461,1791.4,1790.4,3.2078]
[1743353552248,5.97,1791.8,1791.2,3.2078]
[1743353552447,3.1914973,1792.7,1791.3,3.2078]
[1743353552448,0.82668071,1792.0,1791.3,3.2078]
[1743353552749,3.2078,1792.9,1791.9,3.2078]
[1743353552940,3.2078,1793.1,1792.6,3.2078]
[1743353553140,3.2078,1793.8,1793.0,3.2078]
[1743353553343,1.11542,1793.6,1793.1,3.2078]
[1743353553549,0.00838153,1793.6,1793.3,0.13745826]
[1743353553742,1.52967576,1793.5,1793.0,3.2078]
[1743353553941,3.2078,1794.1,1793.4,3.2078]
[1743353554145,3.2078,1794.5,1793.7,3.2078]
[1743353554347,0.0188,1794.4,1793.7,3.2078]
[1743353554647,12.50964996,1794.1,1793.8,3.2078]
[1743353554852,12.50964996,1794.1,1793.2,8.6689]
[1743353554853,12.50964996,1794.1,1793.7,3.2078]
[1743353555152,12.51803149,1794.1,1793.9,0.04581942]
[1743353556057,8.7658,1794.0,1793.0,3.2078]
[1743353556346,3.2078,1794.0,1793.2,3.2078]
[1743353556553,3.2078,1793.8,1793.2,6.68062]
[1743353556753,3.2078,1793.8,1793.3,7.3997254]
[1743353557147,3.2078,1793.5,1793.0,2.9454]
[1743353557345,3.2078,1793.3,1793.0,2.9454]
[1743353557552,3.2078,1793.3,1792.6,10.06148]
[1743353557747,3.2078,1793.1,1792.6,2.8151]
[1743353557950,3.21618153,1793.1,1792.6,2.8151]
[1743353558149,0.00838153,1793.1,1792.6,2.8151]
[1743353558350,3.2078,1793.3,1792.9,4.32361]
[1743353558655,3.2078,1793.5,1792.9,3.2078]
[1743353558855,3.2078,1793.5,1793.0,1.11574]
[1743353559055,8.7838,1793.8,1793.1,3.2078]
[1743353559255,3.2078,1793.8,1793.2,1.11563]
[1743353559457,0.00838153,1793.6,1793.3,8.7778]
[1743353559655,3.2078,1794.2,1793.6,1.11534]
[1743353559852,3.2078,1794.2,1793.7,3.2078]
[1743353560046,6.25392784,1794.4,1793.9,1.11517]
[1743353560248,6.25392784,1794.4,1794.1,1.11504]
[1743353560452,6.25392784,1794.4,1794.0,10.54792239]
[1743353560655,0.00838153,1794.4,1794.2,3.2078]
[1743353560852,6.24637407,1794.6,1794.2,3.2078]
[1743353561057,6.24637407,1794.6,1794.1,8.5345]
[1743353561058,6.24637407,1794.6,1794.4,4.32265]
[1743353561257,6.24637407,1794.6,1794.4,3.2078]
[1743353561862,6.24637407,1794.6,1794.5,1.11482]
[1743353562060,1.82876685,1794.8,1794.5,12.69214833]
[1743353562364,1.82876685,1794.8,1794.7,1.1147]
[1743353562562,1.82876685,1794.8,1794.7,3.6147]
[1743353562759,10.42321308,1795.0,1794.9,1.11458]
[1743353562963,12.50964996,1795.3,1794.9,8.7488]
[1743353563165,12.50964996,1795.3,1795.2,1.11439]
[1743353563363,4.21504996,1795.3,1795.2,1.11439]
[1743353563557,4.22340767,1795.3,1795.2,7.24990654]
[1743353563758,4.22340767,1795.3,1795.2,11.57209654]
[1743353564058,4.22340767,1795.3,1795.0,0.5576]
[1743353564059,0.00835771,1795.3,1795.1,1.11442]
[1743353564258,0.00835771,1795.3,1794.8,4.32238]
[1743353564462,0.00835771,1795.3,1794.8,4.32241]
[1743353564663,2.99635771,1795.3,1794.8,3.2078]
[1743353564862,2.99635771,1795.3,1794.9,5.605]
[1743353565061,2.99635771,1795.3,1794.9,12.84991995]
[1743353565260,2.99635771,1795.3,1794.9,12.85827766]
[1743353565460,4.32228,1795.1,1794.9,0.00835771]
[1743353565652,1.11475,1794.7,1794.0,3.2078]
[1743353565857,1.11477,1794.6,1794.1,6.1516]
[1743353566160,3.2078,1794.8,1794.3,1.11489]
[1743353566662,3.2078,1794.8,1794.4,7.08145894]
[1743353566859,3.01685771,1795.3,1795.0,1.11449]
[1743353567062,4.32189,1795.7,1795.2,1.11435]
[1743353567257,1.11414,1795.6,1795.3,5.603]
[1743353567464,3.2078,1795.5,1795.1,1.11442]
[1743353567663,3.2078,1795.5,1795.2,5.597]
[1743353568168,1.11439,1795.2,1794.9,5.593]
[1743353568368,1.11439,1795.2,1794.9,5.60135771]
[1743353568665,3.0085,1795.2,1794.9,5.60135771]
[1743353569152,3.2078,1795.1,1794.9,5.60135771]
[1743353569559,4.12292,1795.2,1794.9,5.60135771]
[1743353569867,4.32225,1795.1,1794.9,0.00835771]
[1743353570072,7.43915,1795.1,1794.9,0.00835771]
[1743353570365,6.3247,1795.1,1794.9,0.00835771]
[1743353570567,7.43919,1795.1,1794.9,0.00835771]
[1743353570868,7.43917,1795.1,1794.9,0.00835771]
[1743353571069,6.3247,1795.1,1794.9,0.00835771]
[1743353571270,7.43917,1795.1,1794.9,0.00835771]
[1743353571469,6.3247,1795.1,1794.9,0.00835771]
[1743353571762,1.11451,1795.0,1794.9,0.00835771]
[1743353572064,3.1169,1795.0,1794.9,0.00835771]
[1743353572668,4.23141,1795.0,1794.9,0.00835771]
[1743353574671,1.11477,1794.6,1794.3,52.60693]
[1743353574873,3.2078,1794.4,1794.3,52.60693]
[1743353575071,3.2078,1794.4,1794.3,58.10893]
[1743353575674,3.2078,1794.4,1794.3,56.994]
[1743353575875,0.00835771,1794.5,1794.4,1.11489]
[1743353576174,0.00835771,1794.5,1794.4,1.67249]
[1743353576476,0.00835771,1794.5,1794.4,11.57609106]
[1743353577471,0.00835771,1794.5,1794.4,14.54409106]
[1743353577670,0.00835771,1794.5,1794.4,7.95420106]
[1743353577860,1.12319771,1794.5,1794.3,56.96]
[1743353578062,6.0374,1794.4,1794.2,0.00835771]
[1743353578567,1.11495,1794.3,1794.2,0.00835771]
[1743353578769,2.9638,1794.3,1794.2,0.00835771]
[1743353579172,4.07875,1794.3,1794.2,0.00835771]
[1743353580268,2.9638,1794.3,1794.2,0.00835771]
[1743353580471,2.9638,1794.3,1794.2,1.12336771]
[1743353581769,2.9638,1794.3,1794.2,0.00835771]
[1743353581770,4.07875,1794.3,1794.2,0.00835771]
[1743353582180,2.9638,1794.3,1794.2,1.12336771]
[1743353582370,2.9638,1794.3,1794.2,0.00835771]
[1743353582570,4.07875,1794.3,1794.2,0.00835771]
[1743353582772,2.9638,1794.3,1794.2,0.00835771]
[1743353582974,2.9638,1794.3,1794.2,1.12336771]
[1743353583172,2.9638,1794.3,1794.2,0.00835771]
[1743353585376,2.9638,1794.3,1793.8,1.11521]
[1743353585682,3.2078,1793.9,1793.8,1.11521]
[1743353586174,5.8525,1794.3,1793.8,1.11521]
[1743353586175,3.2078,1794.1,1794.0,1.11513]
[1743353587383,3.2078,1794.3,1794.0,5.374]
[1743353587575,3.2078,1794.3,1794.2,1.11501]
[1743353587877,0.00835771,1794.5,1794.4,1.11489]
[1743353588188,0.00835771,1794.5,1794.4,6.49189]
[1743353588370,0.00835771,1794.5,1794.4,13.70238174]
[1743353588576,0.00835771,1794.5,1794.4,16.20238174]
[1743353588879,0.00835771,1794.5,1794.4,13.70238174]
[1743353589074,0.00835771,1794.5,1794.4,13.72398174]
[1743353589579,10.5107486,1794.9,1794.4,13.72398174]
[1743353589580,10.5107486,1794.9,1794.8,1.11464]
[1743353589771,10.5107486,1794.9,1794.8,6.47164]
[1743353590173,10.5107486,1794.9,1794.8,20.02873211]
[1743353590478,3.2078,1795.3,1795.2,1.11439]
[1743353590675,6.3209,1795.3,1795.2,6.46239]
[1743353590987,6.3209,1795.3,1795.2,13.76142954]
[1743353590988,3.1131,1795.3,1795.2,13.76142954]
[1743353591477,0.00835771,1795.4,1795.3,1.11433]
[1743353591678,0.00835771,1795.4,1795.3,6.45033]
[1743353591874,0.00835771,1795.4,1795.3,16.2773466]
[1743353592177,0.00835771,1795.4,1795.3,8.4413466]
[1743353592386,0.00835771,1795.4,1795.3,13.7823466]
[1743353592584,0.00835771,1795.4,1795.3,13.7793466]
[1743353592890,3.12145771,1795.4,1795.3,13.7793466]
[1743353593074,0.00835771,1795.4,1795.3,16.2793466]
[1743353593280,10.52069802,1795.5,1795.4,1.11426]
[1743353593478,10.52069802,1795.5,1795.4,1.13586]
[1743353593780,10.52069802,1795.5,1795.4,8.34745427]
[1743353593980,10.52069802,1795.5,1795.4,8.32585427]
[1743353594176,6.3209,1795.8,1795.7,1.11408]
[1743353594375,3.2078,1796.0,1795.7,6.44908]
[1743353594574,6.3048,1796.0,1795.9,1.11395]
[1743353594778,6.31315771,1796.0,1795.9,1.11395]
[1743353595182,3.10535771,1796.0,1795.9,1.11395]
[1743353595481,3.10535771,1796.0,1795.9,8.33337069]
[1743353595681,3.10535771,1796.0,1795.9,59.81237069]
[1743353596086,3.10535771,1796.0,1795.9,60.36997069]
[1743353596286,0.00835771,1796.0,1795.9,62.86997069]
[1743353596587,0.00835771,1796.0,1795.9,60.36997069]
[1743353596784,0.00835771,1796.0,1795.9,63.57777069]
[1743353596982,0.00835771,1796.0,1795.9,65.69397069]
[1743353597377,0.00835771,1796.0,1795.9,59.81237069]
[1743353597785,0.00835771,1796.0,1795.9,52.59295]
[1743353597985,0.00835771,1796.0,1795.9,1.11395]
[1743353598186,3.21615771,1796.0,1795.9,1.11395]
[1743353599190,1.11424,1795.5,1795.1,1.12278771]
[1743353599388,3.2078,1795.2,1795.1,1.11445]
[1743353599689,3.2078,1795.2,1794.8,5.328]
[1743353599988,3.2078,1795.1,1795.0,1.11451]
[1743353600493,3.2078,1795.1,1794.9,0.00835771]
[1743353600687,3.2078,1795.1,1795.0,1.11451]
[1743353601492,3.2078,1795.5,1795.0,18.11929312]
[1743353601693,3.2078,1795.5,1795.4,1.11426]
[1743353602286,19.62654023,1795.7,1795.6,1.11414]
[1743353602890,22.57234023,1795.7,1795.6,1.11414]
[1743353603096,18.13922023,1795.7,1795.6,1.11414]
[1743353603285,14.07118023,1795.7,1795.6,14.56283167]
[1743353603487,11.58420023,1795.7,1795.6,14.56283167]
[1743353603690,0.75417023,1795.7,1795.6,20.84042472]
[1743353603891,7.94e-06,1796.0,1795.9,1.11395]
[1743353604088,7.94e-06,1796.0,1795.9,9.60675]
[1743353604288,7.94e-06,1796.0,1795.9,19.22029311]
[1743353604800,7.94e-06,1796.0,1795.5,8.0834]
[1743353605094,3.2078,1795.8,1795.7,1.11408]
[1743353608601,3.2078,1795.8,1795.3,3.34336]
[1743353608802,3.2078,1795.5,1795.4,1.11426]
[1743353609194,6.2755,1795.7,1795.6,1.11414]
[1743353609801,1.1142,1795.5,1794.9,0.00835771]
[1743353610004,3.2078,1795.2,1795.1,1.11443]
[1743353610497,9.59988254,1795.7,1795.3,1.11433]
[1743353610805,3.2078,1795.4,1795.1,1.11443]
[1743353611102,3.2078,1795.2,1795.1,1.11443]
[1743353611297,8.48576254,1795.7,1795.1,1.11443]
[1743353611505,3.2078,1795.6,1795.5,1.1142]
[1743353611691,3.2078,1795.6,1795.2,7.23534546]
[1743353611692,3.2078,1795.6,1795.4,1.11422]
[1743353612098,3.2078,1795.6,1795.5,1.1142]
[1743353612500,3.2078,1795.6,1795.3,5.221]
[1743353612805,3.2078,1795.6,1795.5,1.1142]
[1743353613107,3.2078,1795.6,1795.3,1.11429]
[1743353613304,3.2078,1795.4,1795.3,1.11429]
[1743353613706,3.2078,1795.4,1795.2,1.11435]
[1743353613904,3.0531,1795.3,1794.9,0.00835771]
[1743353614202,3.2078,1795.1,1794.9,0.00835771]
[1743353614400,3.0531,1795.0,1794.9,0.00835771]
[1743353615000,11.5366223,1795.0,1794.9,0.00835771]
[1743353615302,11.5366223,1795.0,1794.9,1.12293771]
[1743353616300,8.4835223,1795.0,1794.9,14.54072438]
[1743353616500,10.60440288,1795.1,1795.0,1.11451]
[1743353616796,13.81220288,1795.1,1795.0,1.11451]
[1743353617404,10.60440288,1795.1,1795.0,13.63255175]
[1743353617598,10.60440288,1795.2,1795.1,1.11445]
[1743353618006,13.60350288,1795.2,1795.1,1.11445]
[1743353618407,10.60440288,1795.2,1795.1,1.11445]
[1743353618798,13.60350288,1795.2,1795.1,1.11445]
[1743353619801,13.60350288,1795.2,1795.1,6.27545]
[1743353620195,13.60350288,1795.2,1795.1,13.60121669]
[1743353620405,2.9991,1795.2,1795.1,13.60121669]
[1743353620595,10.60440288,1795.3,1795.2,1.11439]
[1743353620801,10.60440288,1795.3,1795.2,4.21299]
[1743353621405,10.60440288,1795.3,1795.2,11.37375097]
[1743353621706,10.60440288,1795.3,1795.2,62.84375097]
[1743353622406,10.60440288,1795.3,1795.2,65.34375097]
[1743353622707,6.36387778,1795.4,1795.3,1.11433]
[1743353622906,6.36387778,1795.4,1795.3,4.32213]
[1743353623098,6.36387778,1795.4,1795.3,11.44751012]
[1743353623506,9.57167778,1795.4,1795.2,57.70835]
[1743353623707,3.1103,1795.3,1795.2,57.70839]
[1743353624010,3.1103,1795.3,1794.9,0.00835771]
[1743353624300,3.2078,1795.0,1794.2,5.6966]
[1743353624513,3.2078,1794.5,1794.2,1.67259]
[1743353624704,3.2078,1794.5,1794.3,1.11493]
[1743353625009,2.8952,1794.4,1794.2,1.67258]
[1743353625208,2.8952,1794.4,1794.3,1.11495]
[1743353625503,2.8952,1794.4,1794.3,13.42291981]
[1743353625801,0.00835771,1794.5,1794.4,1.11489]
[1743353626003,0.00835771,1794.5,1794.4,4.02859]
[1743353626202,3.21615771,1794.5,1794.4,7.09045111]
[1743353626507,3.21615771,1794.5,1794.2,6.24298]
[1743353626698,2.8952,1794.4,1794.2,6.24298]
[1743353627407,2.8952,1794.4,1794.2,1.11498]
[1743353627608,2.8952,1794.4,1794.3,1.11495]
[1743353627808,3.21615771,1794.5,1794.4,1.11489]
[1743353628009,0.00835771,1794.5,1794.4,1.11489]
[1743353628212,0.00835771,1794.5,1794.4,4.13889]
[1743353629006,0.00835771,1794.5,1794.4,8.123]
[1743353629213,3.00235771,1794.5,1794.1,3.21615771]
[1743353629407,3.2078,1794.4,1794.1,6.22137771]
[1743353629603,3.2078,1794.4,1794.2,3.024]
[1743353629913,2.994,1794.3,1794.1,6.22137771]
[1743353630210,2.994,1794.3,1794.1,6.22141771]
[1743353630410,2.994,1794.3,1794.1,0.00835771]
[1743353630708,3.2078,1794.2,1794.1,0.00835771]
[1743353631110,7.43811,1794.2,1794.1,0.00835771]
[1743353631312,1.11516,1794.0,1793.7,8.8056]
[1743353631511,6.3231,1793.9,1793.7,8.8056]
[1743353631707,3.1153,1793.9,1793.7,8.8056]
[1743353631903,3.1153,1793.9,1793.5,29.273]
[1743353632206,6.3231,1793.9,1793.6,5.071]
[1743353632511,6.3231,1793.9,1793.6,7.19914518]
[1743353632512,7.43832,1793.9,1793.6,7.19914518]
[1743353632708,6.3231,1793.9,1793.7,5.063]
[1743353633213,7.43832,1793.9,1793.7,5.063]
[1743353633413,6.3231,1793.9,1793.7,5.063]
[1743353633602,6.3231,1793.9,1793.7,5.048]
[1743353635111,6.3231,1793.9,1793.7,5.028]
[1743353635306,16.92750288,1793.9,1793.7,5.028]
[1743353636511,18.04272288,1793.9,1793.7,5.028]
[1743353637107,16.92750288,1793.9,1793.7,5.028]
[1743353637305,18.04271288,1793.9,1793.7,5.028]
[1743353637707,16.92750288,1793.9,1793.7,5.028]
[1743353637911,16.92750288,1793.9,1793.6,0.00835771]
[1743353638112,16.92750288,1793.9,1792.2,0.5556]
[1743353638113,3.2078,1793.7,1792.8,52.14961903]
[1743353638313,3.2078,1793.4,1792.9,8.2048]
[1743353638510,3.2078,1793.4,1793.3,1.11557]
[1743353639009,6.1019,1793.8,1793.7,1.11532]
[1743353639318,6.3657,1793.8,1793.7,6.10732]
[1743353639520,6.3657,1793.8,1793.7,4.992]
[1743353639710,13.81220288,1794.0,1793.7,7.492]
[1743353639913,12.60103494,1794.3,1794.2,1.11501]
[1743353640110,12.60103494,1794.3,1794.2,6.11801]
[1743353640417,14.59459162,1794.4,1794.3,1.11495]
[1743353640710,12.67678799,1794.4,1794.3,58.25625]
[1743353640911,12.67678799,1794.4,1794.3,65.53044687]
[1743353642819,12.67678799,1794.4,1794.3,63.03044687]
[1743353643118,0.00835771,1794.5,1794.4,1.11489]
[1743353643318,0.00835771,1794.5,1794.4,7.21819]
[1743353643511,0.00835771,1794.5,1794.4,14.3662433]
[1743353645714,0.00835771,1794.5,1794.4,16.4097433]
[1743353645922,0.00835771,1794.5,1794.4,3.2078]
[1743353646516,2.98825771,1794.5,1794.4,3.2078]
[1743353646713,2.98825771,1794.5,1794.4,4.32269]
[1743353647711,2.98825771,1794.5,1794.4,3.2078]
[1743353648719,2.98825771,1794.5,1794.4,4.32269]
[1743353649119,2.98825771,1794.5,1794.4,3.2078]
[1743353649421,2.98825771,1794.5,1794.4,4.32269]
[1743353649714,0.00835771,1794.5,1794.4,11.52496379]
[1743353649919,0.00835771,1794.5,1794.4,14.68186379]
[1743353655422,8.47835771,1794.5,1793.8,0.5576]
[1743353655618,8.47835771,1794.5,1793.6,0.56595771]
[1743353655619,4.32301,1793.9,1793.6,0.00835771]
[1743353655811,3.2078,1793.7,1793.6,0.00835771]
[1743353657122,3.2078,1794.1,1793.6,7.29232927]
[1743353657322,3.2078,1794.1,1793.7,11.0937]
[1743353657615,3.2078,1794.1,1793.9,1.11513]
[1743353657819,3.2078,1794.3,1794.0,1.11513]
[1743353658019,3.2078,1794.3,1794.1,4.88]
[1743353658421,3.2078,1794.3,1794.2,7.2872519]
[1743353658621,4.32275,1794.3,1794.2,2.4691519]
[1743353658820,8.46521346,1794.2,1793.9,51.493]
[1743353659022,1.11523,1793.9,1793.6,4.88935771]
[1743353659224,3.2078,1793.7,1793.6,4.88935771]
[1743353659813,3.2078,1793.7,1793.6,6.00473771]
[1743353660027,8.46521346,1794.2,1793.7,1.11528]
[1743353660028,3.2078,1793.9,1793.7,1.11528]
[1743353660330,3.2078,1793.9,1793.6,12.01905758]
[1743353660626,2.9127,1793.8,1793.6,4.88935771]
[1743353660818,2.9127,1793.8,1793.7,7.12969987]
[1743353661421,2.9127,1793.8,1793.6,0.00835771]
[1743353661617,3.2078,1793.7,1793.6,0.00835771]
[1743353662120,7.23582,1793.7,1793.6,0.00835771]
[1743353662322,1.11547,1793.5,1793.3,51.493]
[1743353662522,2.9127,1793.4,1793.3,51.493]
[1743353663130,1.11563,1793.2,1792.8,1.67426]